Cogmind - Beta 13 X1 @@@ ROGUE MODE // 2023.07.10 @ 23:03:10 Player: biogoob Result: Destroyed by S-10 Pest with Light Assault Rifle Performance ------------- Evolutions (2) 1000 Regions Visited (6) 1200 Robots Destroyed (21) 105 Value Destroyed (705) 705 Prototype IDs (5) 100 Alien Tech Used (0) 0 Bonus (766) 766 TOTAL SCORE: 3876 Bonus ------- Follower Combat Kills 66 Entered Garrisons 200 Used RIF Installer 500 Cogmind --------- Core Integrity 0/550 Matter 240/300 Energy 100/100 System Corruption 0% Temperature Cool (0) Movement Core (100) Ox1 Location -8/Materials Parts ------- > --- POWER (1) -------- (None) > --- PROPULSION (3) --- (None) > --- UTILITY (4) ------ Small Storage Unit Visual Processing Unit > --- WEAPON (3) ------- (None) > --- INVENTORY (8) ---- Airjet Medium Armor Plating Beam Rifle Particle Cannon Peak State ------------ > --- POWER ------------ Improved Deuterium Engine > --- PROPULSION ------- Light Treads Light Treads Light Treads > --- UTILITY ---------- Large Storage Unit Salvage Targeting Computer Advanced Targeting Computer Medium Armor Plating > --- WEAPON ----------- Assault Rifle Light Cannon Improved Light Cannon > --- INVENTORY -------- Ion Engine Improved Ion Engine Improved Deuterium Engine Light Treads Light Treads Wheel Small Storage Unit Core Shielding EM Pulse Gun Medium Laser Beam Rifle Heavy Rocket Launcher [Rating: 21] Favorites ----------- Power Ion Engine Engine Ion Engine Propulsion Light Treads Treads Light Treads Leg Aluminum Leg Hover Unit Airjet Utility Small Storage Unit Device Field Recycling Unit Storage Small Storage Unit Processor Salvage Targeting Computer Hackware Hacking Suite Protection Core Shielding Weapon Assault Rifle Energy Gun Small Laser Energy Cannon Particle Cannon Ballistic Gun Assault Rifle Ballistic Cannon Light Cannon Build | -11 -10 -9 -9 -8 -8 -8 ------- Run | Jun Mat Mat Min Mat Gar Mat Slots Evolved 4 | . . 2 . 2 . . Power . | . . . . . . . Propulsion 1 | . . . . 1 . . Utility 2 | . . 1 . 1 . . Weapon 1 | . . 1 . . . . Parts Attached 35 | . 8 6 . 5 5 11 Power 6 | . 2 1 . 1 . 2 Engine 6 | . 2 1 . 1 . 2 Core . | . . . . . . . Reactor . | . . . . . . . Propulsion 10 | . 2 2 . 1 . 5 Treads 5 | . 2 2 . 1 . . Leg . | . . . . . . . Wheel . | . . . . . . . Hover 5 | . . . . . . 5 Flight . | . . . . . . . Utility 11 | . 2 2 . 3 2 2 Device 1 | . . 1 . . . . Storage 2 | . . . . 1 . 1 Processor 3 | . . . . 1 1 1 Hackware 1 | . . 1 . . . . Protection 4 | . 2 . . 1 1 . Artifact . | . . . . . . . Weapon 8 | . 2 1 . . 3 2 Energy Gun 4 | . . . . . 3 1 Energy Cannon 1 | . . . . . . 1 Ballistic Gun 1 | . 1 . . . . . Ballistic Cannon 2 | . 1 1 . . . . Launcher . | . . . . . . . Special Weapon . | . . . . . . . Impact Weapon . | . . . . . . . Slashing Weapon . | . . . . . . . Piercing Weapon . | . . . . . . . Special Melee Weapon . | . . . . . . . Unidentified Prototypes . | . . . . . . . Parts Lost 10 | . 1 . . . 5 4 Power 1 | . . . . . . 1 Propulsion 3 | . . . . . . 3 Utility 2 | . 1 . . . 1 . Weapon 4 | . . . . . 4 . Highest Loss Streak 4 | . 1 . . . 4 4 To Critical Strikes . | . . . . . . . Average Slot Usage (%) 91 | . 99 95 100 99 85 22 Engine 10 | . 14 11 11 9 7 1 Treads 23 | . 27 22 22 27 23 . Storage 10 | . 14 11 11 9 7 3 Processor 3 | . . . . 2 15 5 Hackware 3 | . . 2 11 6 . . Protection 11 | . 13 11 11 17 7 . Energy Gun 1 | . 3 . . . . 1 Ballistic Gun 10 | . 14 11 11 9 7 . Ballistic Cannon 14 | . 10 19 22 18 14 . Naked Turns 94 | . . . . . 64 30 Heaviest Build 47 | 10 18 28 22 47 46 14 Greatest Support 60 | 20 40 40 40 60 60 24 Greatest Overweight (x) 2 | . . . . . . 2 Average Overweight (x) . | . . . . . . . Largest Inventory Capacity 15 | 8 8 8 8 15 15 8 Average Capacity 9 | 8 8 8 8 11 13 6 Most Carried 13 | 6 8 8 8 12 13 5 Average Carried 8 | 6 7 7 8 8 10 4 Final Capacity 15 | 8 8 8 8 15 5 8 Final Carried 12 | 6 8 8 8 12 5 4 Class Distribution -------------------- 42% | Tank 41% | Mutant 15% | Gunner Dominant Class ---------------- Mutant | -10/Materials Tank | -9/Materials Tank | -9/Mines Tank | -8/Materials Gunner | -8/Garrison Mutant | -8/Materials Resources | -11 -10 -9 -9 -8 -8 -8 ----------- Run | Jun Mat Mat Min Mat Gar Mat Matter Collected 910 | 200 125 109 36 121 281 38 Remotely . | . . . . . . . Salvage Created 687 | . 132 151 . 129 237 38 Parts 33 | . 12 9 . 3 7 2 Haulers Intercepted . | . . . . . . . Recyclers Shooed . | . . . . . . . Parts Field Recycled 1 | . . 1 . . . . Retrieved Matter 5 | . . 5 . . . . Parts Self-Destructed . | . . . . . . . Prevented . | . . . . . . . Kills | -11 -10 -9 -9 -8 -8 -8 ------- Run | Jun Mat Mat Min Mat Gar Mat Combat Hostiles Destroyed 16 | . 5 2 . 3 6 . Guns 7 | . 3 1 . 2 1 . Cannons 9 | . 2 1 . 1 5 . Classes Destroyed 6 | . 3 3 . . . . Recycler 1 | . . 1 . . . . Operator 1 | . . 1 . . . . Watcher 3 | . 1 . . 1 . 1 Swarmer 3 | . 3 . . . . . Grunt 11 | . 2 . . 3 6 . Sentry 2 | . . 2 . . . . Best Kill Streak 3 | . 3 3 . 2 2 1 Combat Bots Only 3 | . 3 1 . 2 2 . Max Kills in Single Turn 1 | . 1 1 . 1 1 1 Gunslinging . | . . . . . . . Exploded . | . . . . . . . Melee . | . . . . . . . Uniques/NPCs Destroyed . | . . . . . . . Combat | -11 -10 -9 -9 -8 -8 -8 -------- Run | Jun Mat Mat Min Mat Gar Mat Damage Taken 2099 | . 259 101 22 65 1299 353 Core 574 | . 22 . . . 419 133 Absorbed by Shields 27 | . . . . . 27 . Redirected to Shielding 14 | . . . . . 14 . Core Remaining (%) 97 | 100 91 . 100 . . . Volleys Fired 63 | . 18 6 1 9 26 3 Largest 3 | . 2 3 3 3 3 2 Hottest 155 | . 60 94 94 94 155 124 Shots Fired 166 | . 35 18 3 27 77 6 Gun 76 | . 27 6 1 9 30 3 Cannon 90 | . 8 12 2 18 47 3 Launcher . | . . . . . . . Special . | . . . . . . . Kinetic 142 | . 26 18 3 27 68 . Thermal 22 | . 9 . . . 7 6 Explosive . | . . . . . . . Electromagnetic 2 | . . . . . 2 . Robot Hit Streak 9 | . 4 5 1 9 7 6 Robot Miss Streak 3 | . 3 2 1 2 3 1 Penetration Max . | . . . . . . . Secondary Targets . | . . . . . . . Shots Hit Robots 91 | . 20 8 1 16 41 5 Core Hits 46 | . 9 6 . 9 20 2 Critical Kills . | . . . . . . . Critical Parts Destroyed . | . . . . . . . Critical Strikes 4 | . . 1 . 1 2 . Blast 4 | . . 1 . 1 2 . Melee Attacks . | . . . . . . . Impact . | . . . . . . . Slashing . | . . . . . . . Piercing . | . . . . . . . Sneak Attacks . | . . . . . . . Combat Hostiles . | . . . . . . . Follow-up Attacks . | . . . . . . . Damage Inflicted 1613 | . 276 159 16 325 743 94 Guns 584 | . 200 41 . 92 222 29 Cannons 994 | . 76 118 16 233 489 62 Explosions . | . . . . . . . Melee . | . . . . . . . Ramming 35 | . . . . . 32 3 Kinetic 1299 | . 198 159 16 325 601 . Thermal 252 | . 78 . . . 83 91 Explosive . | . . . . . . . Electromagnetic 27 | . . . . . 27 . Impact . | . . . . . . . Slashing . | . . . . . . . Piercing . | . . . . . . . Highest Corruption . | . . . . . . . Average Corruption . | . . . . . . . Corruption Purged . | . . . . . . . Corruption Blocked . | . . . . . . . Overload Shots . | . . . . . . . Overflow Damage 8 | . . 8 . . . . Projectiles 8 | . . 8 . . . . Explosions . | . . . . . . . Melee . | . . . . . . . Knockbacks 11 | . 1 . . 3 7 . Impact . | . . . . . . . Kinetic 11 | . 1 . . 3 7 . Secondary . | . . . . . . . Self-Inflicted Damage 16 | . . . . . 15 1 Shots . | . . . . . . . Rammed 13 | . . . . . 12 1 Targets Rammed 13 | . . . . . 12 1 Kicked . | . . . . . . . Crushed . | . . . . . . . Highest Temperature 494 | . 159 57 39 149 494 121 Average Temperature 99 | . 50 26 23 58 151 71 Received Heat Transfer 1027 | . 78 45 12 54 784 54 Effects 3 | . . . . . 3 . Shutdowns 1 | . . . . . 1 . Interference 2 | . . . . . 2 . Siege Activations . | . . . . . . . Robots Corrupted . | . . . . . . . Combat Hostiles . | . . . . . . . Parts Fried . | . . . . . . . Impact Corruptions . | . . . . . . . Robots Melted . | . . . . . . . Combat Hostiles . | . . . . . . . Parts Melted 1 | . . . . . . 1 Heat Transferred 582 | . 175 . . . 222 185 Parts Sabotaged . | . . . . . . . Parts Stolen . | . . . . . . . Parts Stripped . | . . . . . . . Power Chain Reactions . | . . . . . . . Missiles Intercepted . | . . . . . . . Alert | -11 -10 -9 -9 -8 -8 -8 ------- Run | Jun Mat Mat Min Mat Gar Mat Peak Influence 271 | . 138 125 83 141 271 256 Initial 119 | . . 5 48 31 91 119 Average 90 | . 35 58 69 99 179 166 Maximum Alert Level 1 | . . . . . 1 1 Low Security (%) 89 | 100 100 100 100 100 55 73 Level 1 10 | . . . . . 44 26 Level 2 . | . . . . . . . Level 3 . | . . . . . . . Level 4 . | . . . . . . . Level 5 . | . . . . . . . High Security . | . . . . . . . Max Security . | . . . . . . . Squads Dispatched 3 | . 1 . 1 . . 1 Investigation 3 | . 1 . 1 . . 1 Extermination . | . . . . . . . Reinforcement . | . . . . . . . Assault . | . . . . . . . Garrison . | . . . . . . . Intercept . | . . . . . . . Searches Triggered . | . . . . . . . Construction Impeded . | . . . . . . . Haulers Reinforced . | . . . . . . . Active Scanning Responses . | . . . . . . . Cargo Convoy Interrupts . | . . . . . . . Stealth | -11 -10 -9 -9 -8 -8 -8 --------- Run | Jun Mat Mat Min Mat Gar Mat Distress Signals 1 | . . . . . . 1 Communications Jammed . | . . . . . . . Distress Signals . | . . . . . . . Times Spotted 43 | . 8 3 1 6 13 12 Peak Tracking Total 10 | . 3 2 1 3 4 10 Tactical Retreats 8 | . . . . . 5 3 Traps | -11 -10 -9 -9 -8 -8 -8 ------- Run | Jun Mat Mat Min Mat Gar Mat Traps Triggered 3 | . 1 . . . 1 1 Indirectly . | . . . . . . . Trap Hack Attempts . | . . . . . . . Triggered . | . . . . . . . Disarmed . | . . . . . . . Reprogrammed . | . . . . . . . Reused . | . . . . . . . Traps Extracted . | . . . . . . . Installed . | . . . . . . . Triggered . | . . . . . . . Machines | -11 -10 -9 -9 -8 -8 -8 ---------- Run | Jun Mat Mat Min Mat Gar Mat Machines Disabled . | . . . . . . . Max in Single Turn . | . . . . . . . Machines Repaired . | . . . . . . . Machines Sabotaged . | . . . . . . . Overloaded Fab Kills . | . . . . . . . Hacking | -11 -10 -9 -9 -8 -8 -8 --------- Run | Jun Mat Mat Min Mat Gar Mat Machines Accessed 15 | . 6 4 1 3 . 1 Terminals 11 | . 4 3 1 2 . 1 Fabricators . | . . . . . . . Repair Stations . | . . . . . . . Recycling Units 3 | . 2 1 . . . . Scanalyzers . | . . . . . . . Garrison Access 1 | . . . . 1 . . Total Hacks 42 | . 16 16 3 5 . 2 Successful 19 | . 7 9 1 2 . . Failed 22 | . 8 7 2 3 . 2 Catastrophic 4 | . 1 1 . 1 . 1 Database Lockouts 1 | . 1 . . . . . Manual 21 | . 6 9 2 2 . 2 Terminals 37 | . 14 15 3 3 . 2 Fabricators . | . . . . . . . Repair Stations . | . . . . . . . Recycling Units 3 | . 2 1 . . . . Scanalyzers . | . . . . . . . Garrison Access 2 | . . . . 2 . . Terminal Hacks 11 | . 4 5 1 1 . . Robot Analysis 2 | . 1 1 . . . . Prototype ID Bank 2 | . . 1 . 1 . . Locate Traps 1 | . 1 . . . . . Assault Status 1 | . . 1 . . . . Recall Investigation 1 | . 1 . . . . . Hauler Manifests 1 | . . 1 . . . . Registered Components 1 | . . 1 . . . . Zone Layout 2 | . 1 . 1 . . . Fabricator Hacks . | . . . . . . . Repair Station Hacks . | . . . . . . . Recycling Unit Hacks 3 | . 2 1 . . . . Report Inventory 3 | . 2 1 . . . . Scanalyzer . | . . . . . . . Garrison Access Hacks 1 | . . . . 1 . . Unlock Access 1 | . . . . 1 . . Unauthorized Hacks 4 | . 1 3 . . . . Terminals 4 | . 1 3 . . . . Botnet 4 | . 1 3 . . . . Fabricators . | . . . . . . . Repair Stations . | . . . . . . . Recycling Units . | . . . . . . . Scanalyzers . | . . . . . . . Garrison Access . | . . . . . . . Data Cores Recovered 1 | . . 1 . . . . Used . | . . . . . . . Hacking Detections 13 | . 5 3 1 3 . 1 Full Trace Events 3 | . 1 . 1 . . 1 Feedback Events . | . . . . . . . Feedback Blocked . | . . . . . . . Robot Schematics Acquired . | . . . . . . . Robots Built . | . . . . . . . Authchips . | . . . . . . . Time . | . . . . . . . Total Robot Build Rating . | . . . . . . . Part Schematics Acquired . | . . . . . . . Parts Built . | . . . . . . . Authchips . | . . . . . . . Time . | . . . . . . . Total Part Build Rating . | . . . . . . . Parts Repaired . | . . . . . . . Time . | . . . . . . . Parts Recycled . | . . . . . . . Recycled Matter . | . . . . . . . Retrieved Matter . | . . . . . . . Retrieved Components . | . . . . . . . Parts Scanalyzed . | . . . . . . . Part Schematics Acquired . | . . . . . . . Parts Damaged . | . . . . . . . Bothacking | -11 -10 -9 -9 -8 -8 -8 ------------ Run | Jun Mat Mat Min Mat Gar Mat Used RIF Installer 1 | . . . . . 1 . Robots Hacked . | . . . . . . . Non-combat . | . . . . . . . Combat . | . . . . . . . Robot Hacks Applied . | . . . . . . . Relay Couplers Released . | . . . . . . . Fabnet Peak Effective % . | . . . . . . . Robots Rewired . | . . . . . . . Allies Hacked . | . . . . . . . Hacks Repelled . | . . . . . . . Allies | -11 -10 -9 -9 -8 -8 -8 -------- Run | Jun Mat Mat Min Mat Gar Mat Total Allies 3 | . . . 3 . . . Largest Group 3 | . . . 3 3 . . Highest-Rated Group 40 | . . . 40 40 . . Highest-Rated Ally 16 | . . . 16 16 . . Total Orders . | . . . . . . . Ally Attacks 22 | . . . 12 10 . . Total Damage 230 | . . . 110 120 . . Kills 2 | . . . 1 1 . . Allies Corrupted . | . . . . . . . Allies Melted . | . . . . . . . Intel | -11 -10 -9 -9 -8 -8 -8 ------- Run | Jun Mat Mat Min Mat Gar Mat Robot Analysis Total 2 | . 1 1 . . . . Derelict Logs Recovered . | . . . . . . . Drone Launches . | . . . . . . . Drone Recoveries . | . . . . . . . Exploration | -11 -10 -9 -9 -8 -8 -8 ------------- Run | Jun Mat Mat Min Mat Gar Mat Turns Passed 2178 | 10 620 302 306 383 417 140 Spaces Moved 1352 | 9 347 167 185 208 244 192 Core 195 | . . . . . 83 112 Treads 1055 | . 334 167 185 208 161 . Legs 22 | 9 13 . . . . . Wheels . | . . . . . . . Hover 80 | . . . . . . 80 Flight . | . . . . . . . Fastest Speed 50 | 120 120 160 160 160 50 50 Average Speed 138 | 120 158 160 160 160 122 57 Slowest Speed 160 | 120 160 160 160 160 160 150 Overloaded Moves . | . . . . . . . Propulsion Burnouts . | . . . . . . . Robots Hopped . | . . . . . . . Cave-ins Triggered . | . . . . . . . Exploration Rate (%) 28 | 2 67 18 40 22 27 25 Regions Visited 6 Branch Regions 1 Pre-discovered Areas . | . . . . . . . Known Exits Taken 1 | . . . . 1 . . Unknown Exits Taken 4 | 1 1 1 1 . . . Scrap Searched . | . . . . . . . Spaces Dug . | . . . . . . . Terrain Destroyed . | . . . . . . . Melee . | . . . . . . . Projectile . | . . . . . . . AOE . | . . . . . . . Terrain Rammed . | . . . . . . . Walls Destroyed . | . . . . . . . Machines Disabled . | . . . . . . . Actions | -11 -10 -9 -9 -8 -8 -8 --------- Run | Jun Mat Mat Min Mat Gar Mat Total 1528 | 8 383 192 193 237 302 213 Wait 24 | . . 2 8 11 3 . Move 1345 | 8 346 166 184 207 242 192 Hop . | . . . . . . . Pick Up 15 | . 3 4 . 4 2 2 Fast Attach 14 | . 4 3 . 1 . 6 Attach 11 | . 1 . . 2 4 4 Detach 5 | . 2 . . 1 . 2 Swap 10 | . 3 3 . 2 1 1 Drop 16 | . 6 8 . . . 2 Fire 63 | . 18 6 1 9 26 3 Melee . | . . . . . . . Ram 13 | . . . . . 12 1 Kick . | . . . . . . . Crush . | . . . . . . . Escape Stasis 12 | . . . . . 12 . Rewire . | . . . . . . . Trap . | . . . . . . . Miscellaneous . | . . . . . . . Route ------- -11/Junkyard -10/Materials (discovered 3 exits: *Mat / [*Min x2]) -9/Materials -9/Mines -8/Materials -8/Garrison -8/Materials History --------- Turn | Location | Event 1 | -11/Junkyard | Discovered new exit (range 3) 11 | -11/Junkyard | Entered Materials 250 | -10/Materials | Discovered new exit (range 6) 307 | -10/Materials | Build established: Mutant 336 | -10/Materials | Discovered new exit (range 5) 429 | -10/Materials | Central database locked down 517 | -10/Materials | Discovered new exit (range 20) 631 | -10/Materials | Entered another Materials area 631 | -9/Materials | Evolved 2 slots: Utility x1, Weapon x1 832 | -9/Materials | Discovered new exit (range 12) 933 | -9/Materials | Entered Mines 941 | -9/Mines | Met a Derelict bent on vengeance 979 | -9/Mines | Build established: Tank 993 | -9/Mines | Assisted by bots powering up and referring to "LRC-V3" 1220 | -9/Mines | Discovered new exit (range 13) 1239 | -9/Mines | Entered Materials 1239 | -8/Materials | Accompanied by 3 allies 1239 | -8/Materials | Evolved 2 slots: Propulsion x1, Utility x1 1549 | -8/Materials | Identified exit to Garrison 1622 | -8/Materials | Entered Garrison 1718 | -8/Garrison | Triggered checkpoint 1906 | -8/Garrison | Build established: Gunner 1950 | -8/Garrison | Triggered checkpoint 1975 | -8/Garrison | Released all parts (10) 1988 | -8/Garrison | Discovered new exit (range 12) 2002 | -8/Garrison | Triggered checkpoint 2004 | -8/Garrison | Lost 4 parts (4w) 2024 | -8/Garrison | Core integrity fell below 50% 2025 | -8/Garrison | Installed Relay Interface Framework 2039 | -8/Garrison | Entered Materials 2100 | -8/Materials | Core integrity fell below 20% 2179 | -8/Materials | Destroyed by S-10 Pest with Light Assault Rifle Last Messages --------------- 02113_ Connecting with Terminal... 02113_ Current location identified: Materials 02113_ ALERT: Suspicious activity at Terminal M010. Dispatching Investigation squad. 02114_ K-01 Serf collects debris. 02114_ Slammed into K-01 Serf. 02117_ Acquired Airjet. 02117_ K-01 Serf sends out distress signal. 02119_ Acquired Airjet. 02129_ Triggered Blade Trap. 02129_ Massive razor-sharp blades shoot up from within the floor. 02129_ Airjet severed. 02129_ Lgt. Angular Momentum Engine severed. 02130_ Acquired Lgt. Angular Momentum Engine. 02132_ Acquired Airjet. 02143_ K-01 Serf collects debris. 02156_ Penetrated by Slug. 02159_ Lgt. Angular Momentum Engine destroyed. 02160_ Airjet destroyed. 02170_ S-10 Pest destroyed. Map ----- +----------------------------------------------------+ | ??????????????# """ """ # ######??????? | | ??????????????# """ """ # ##+#???? | | ??????????????# # #???? | | ????????????????######### ######## | | ????????????????????????###### #? """ # | | ?????????????????????????????# #? """ # | | ?????????????????????????????# # """ # | | ?????????????????????????????# # # | | ?????????????????????????????# + # | | ?????????????????????????????# # =# | | ????????????????????????????## #######? | | ????????????????????????????# *% #?????? | | ????????????????????????????# #?????? | | ????????????????????????????# #?????? | | ????????????????????????????# #?????? | | ????????????????????????????# #?????? | | ????????????????????????????### ###?????? | | ??????????????????###+##??????# #???????? | | ??????????????????# #######Y###?????? | | ??????????????##### # # | | ????????????+ T s + # | | ????????????????### # # | | ??????????????????# ###s#######? # | | ??????????????????## ??# #????#### | | ???????????????????#????#s"T" #???????? | | ????????????????????????#@""" #???????? | | ????????????????????????# #???????? | | ????????????????????????###+#####???????? | | ????????????????????????????????????????? | | ????????????????????????????????????????? | | ????????????????????????????????????????? | | ????????????????????????????????????????? | | ????????????????????????????????????????? | | ????????????????????????????????????????? | | ????????????????????????????????????????? | | ????????????????????????????????????????? | | ????????????????????????????????????????? | | ????????????????????????????????????????? | | ????????????????????????????????????????? | | ????????????????????????????????????????? | | | | | | | | | | | | | | | | | | | | | +----------------------------------------------------+ Best States ------------- Heat Dissipation 31 Energy Generation 18 Energy Capacity 290 Matter Stores 300 Matter Capacity 300 Sight Range 18 Terrain Scan Density 10 Armor Coverage 225 Core Shielding 20 Evasion (%) 54 Targeting Accuracy 8 Recoil Reduction 3 Salvage Targeting 1 Offensive Hacking 10 Item Schematics ----------------- None Robot Schematics ------------------ None Fabricated ------------ Nothing Alien Tech Used ----------------- None Achievements -------------- None Challenges ------------ None Game ------ Seed LayeredDecoyReconstructor Manual? 0 Play Time 00:20:59 Cumulative 135.6 hours Start 2023.07.10 @ 22:35:48 End 2023.07.10 @ 23:03:10 Sessions 1 Manual Loads 0 Difficulty Rogue Special Mode None Game No. 155 Rogue 132 Adventurer 19 Explorer 4 Win Type - Total 1 Types 0/0/1/0/0/0/0/0/0 Lore% 51 Gallery% 58 Achievement% 46 Wizard Run 0 Options --------- ASCII 1 Keyboard 1 Movement Vi Keybinds 0 Fullscreen 2 Font 18/Terminus Map View 76x50 Tactical HUD 1 Map Filters NONE Filters SATURATION(80) Steam 1 RUN: b7630a90-bcdd-4176-91b2-ca028eba0c82